bitfinex-derivatives/quotes_SOLF0:USTF0_20220104
["timestamp","ask_amount","ask_price","bid_price","bid_amount"]
[1641277033179,3.36730943,167.78,167.7,5.76334185]
[1641277033380,4.80456345,167.78,167.72,12.62413125]
[1641277033982,67.92133123,167.79,167.72,12.62413125]
[1641277034183,55.32958,167.79,167.71,30.42813185]
[1641277034380,3.36763306,167.78,167.71,30.42813185]
[1641277034579,68.41483306,167.78,167.71,30.42813185]
[1641277034780,1.43170662,167.77,167.71,27.66479]
[1641277035281,3.36763306,167.76,167.71,27.66479]
[1641277036881,3.36763306,167.76,167.69,6.0]
[1641277037080,3.0,167.75,167.69,6.0]
[1641277037282,9.114,167.75,167.69,6.0]
[1641277037481,3.36763306,167.74,167.69,6.0]
[1641277039983,3.0,167.73,167.69,6.0]
[1641277040183,3.0,167.72,167.69,6.0]
[1641277040984,3.36863752,167.71,167.69,6.0]
[1641277041185,12.20363752,167.71,167.69,6.0]
[1641277041785,3.36863752,167.7,167.69,6.0]
[1641277042583,5.835,167.71,167.69,6.0]
[1641277043283,3.36861895,167.7,167.69,6.0]
[1641277044483,3.36861895,167.73,167.69,6.0]
[1641277044783,3.36861895,167.73,167.69,10.672]
[1641277049691,1.43289146,167.72,167.69,10.672]
[1641277050090,3.36861895,167.71,167.69,10.672]
[1641277050492,27.66479,167.7,167.69,10.672]
[1641277051295,29.09768146,167.7,167.69,6.0]
[1641277051497,32.46625553,167.7,167.69,6.0]
[1641277052595,31.03336407,167.7,167.69,6.0]
[1641277052997,31.03336407,167.7,167.62,4.19124303]
[1641277053195,71.8649,167.69,167.62,4.19124303]
[1641277053395,75.23347407,167.69,167.61,4.19124303]
[1641277053596,3.0,167.67,167.61,4.19124303]
[1641277053797,3.0,167.65,167.61,4.19124303]
[1641277053996,8.237,167.65,167.61,4.19124303]
[1641277054196,8.237,167.65,167.57,4.19124303]
[1641277054397,27.66479,167.61,167.57,4.19124303]
[1641277055000,93.29299,167.64,167.57,4.19124303]
[1641277055297,93.29299,167.64,167.56,4.19124303]
[1641277056501,120.95778,167.64,167.57,4.19124303]
[1641277058604,27.66479,167.58,167.57,4.19124303]
[1641277058801,33.78279,167.58,167.57,4.19124303]
[1641277059002,33.78279,167.58,167.54,4.19124303]
[1641277060004,40.78279,167.58,167.54,4.19124303]
[1641277060204,33.78279,167.58,167.54,2.65124303]
[1641277060505,27.66479,167.55,167.52,2.74593668]
[1641277060803,27.66479,167.55,167.5,12.62413125]
[1641277061004,27.66479,167.55,167.47,12.62413125]
[1641277062103,27.66479,167.55,167.47,15.62413125]
[1641277062305,27.66479,167.55,167.48,5.7083514]
[1641277062505,61.1169,167.57,167.49,27.66479]
[1641277062907,61.1169,167.57,167.49,30.3731414]
[1641277063507,61.1169,167.57,167.5,2.7083514]
[1641277064407,1.5435786,167.56,167.51,12.62413125]
[1641277068512,8.5435786,167.56,167.51,12.62413125]
[1641277068812,27.66479,167.55,167.51,12.62413125]
[1641277072423,27.66479,167.55,167.46,5.7083514]
[1641277072621,27.66479,167.55,167.48,3.0]
[1641277072820,27.66479,167.55,167.48,6.665]
[1641277073126,61.1169,167.57,167.48,34.32979]
[1641277073423,61.1169,167.57,167.49,2.7083514]
[1641277074123,61.1169,167.57,167.5,2.7083514]
[1641277074727,61.1169,167.57,167.48,27.66479]
[1641277075129,65.2989,167.57,167.45,40.28892125]
[1641277075325,3.0,167.53,167.45,12.62413125]
[1641277075523,3.0,167.53,167.38,3.0]
[1641277075524,7.0,167.52,167.44,12.62413125]
[1641277075723,3.0,167.51,167.44,12.62413125]
[1641277075925,4.0,167.49,167.44,12.62413125]
[1641277076123,10.745,167.49,167.44,12.62413125]
[1641277076325,3.37201586,167.48,167.44,12.62413125]
[1641277076526,3.37201586,167.48,167.36,15.62413125]
[1641277076726,63.613,167.47,167.36,15.62413125]
[1641277077126,63.613,167.47,167.38,27.66479]
[1641277077939,27.66479,167.48,167.4,3.0]
[1641277078128,4.0,167.49,167.4,3.0]
[1641277078331,62.7558,167.5,167.4,3.0]
[1641277078529,62.7558,167.5,167.41,3.0]
[1641277078730,4.0,167.52,167.4,3.0]
[1641277078929,4.0,167.52,167.41,3.0]
[1641277079130,3.3724046,167.51,167.43,27.66479]
[1641277079732,9.4804046,167.51,167.43,27.66479]
[1641277080532,3.3724046,167.5,167.43,27.66479]
[1641277080731,3.3724046,167.5,167.44,2.62729902]
[1641277080931,62.3666,167.51,167.44,2.62729902]
[1641277082335,3.0,167.47,167.44,2.62729902]
[1641277082637,6.322,167.47,167.44,2.62729902]
[1641277082834,9.322,167.47,167.42,12.62413125]
[1641277083036,27.66479,167.44,167.42,12.62413125]
[1641277083237,3.37282736,167.46,167.43,6.0]
[1641277083537,33.98679,167.47,167.43,6.0]
[1641277084036,3.37335025,167.46,167.43,6.0]
[1641277084437,33.98679,167.47,167.43,6.0]
[1641277084636,27.66479,167.47,167.43,6.0]
[1641277085039,27.66479,167.47,167.43,10.357]
[1641277086539,27.66479,167.47,167.43,6.0]
[1641277086738,27.66479,167.47,167.44,33.6894788]
[1641277087138,3.37327792,167.46,167.44,33.6894788]
[1641277087339,7.74027792,167.46,167.43,6.0]
[1641277087938,4.367,167.46,167.43,6.0]
[1641277089543,4.367,167.46,167.43,39.6894788]
[1641277089741,68.33764045,167.51,167.43,39.6894788]
[1641277089742,62.3666,167.51,167.43,39.6894788]
[1641277089942,62.3666,167.51,167.43,45.1794788]
[1641277090141,3.37289575,167.5,167.43,45.1794788]
[1641277090343,3.37289575,167.5,167.44,33.6894788]
[1641277090941,4.0,167.49,167.44,33.6894788]
[1641277091143,27.66479,167.47,167.44,33.6894788]
[1641277091344,27.66479,167.47,167.43,39.6894788]
[1641277091744,3.37289575,167.46,167.43,39.6894788]
[1641277091946,3.37289575,167.46,167.43,6.0]
[1641277094746,4.0,167.49,167.43,6.0]
[1641277095148,3.37304553,167.48,167.43,6.0]
[1641277099150,3.37304553,167.48,167.45,12.64784958]
[1641277099551,3.37304553,167.48,167.45,4.958e-05]
[1641277100052,3.37304553,167.48,167.43,6.0]
[1641277100952,62.3666,167.51,167.43,9.0]
[1641277101153,36.80479,167.53,167.44,30.66479]
[1641277101353,65.9464,167.54,167.44,30.66479]
[1641277101553,3.3722651,167.52,167.44,30.66479]
[1641277101754,3.3722651,167.52,167.45,3.0]
[1641277101954,65.9464,167.54,167.45,12.92892559]
[1641277101955,3.3722651,167.53,167.45,12.92892559]
[1641277102956,3.3722651,167.53,167.45,46.61840439]
[1641277103257,3.3722651,167.53,167.47,27.66479]
[1641277103955,3.3722651,167.54,167.47,27.66479]
[1641277104355,3.3722651,167.54,167.47,30.66479]
[1641277104555,3.3722651,167.54,167.48,9.92892559]
[1641277105156,3.3722651,167.57,167.48,9.92892559]
[1641277105357,3.3722651,167.57,167.48,43.61840439]
[1641277106057,4.0,167.53,167.48,43.61840439]
[1641277106258,15.55732747,167.53,167.48,43.61840439]
[1641277106459,3.3722651,167.52,167.48,43.61840439]
[1641277107057,3.3722651,167.52,167.48,9.92892559]
[1641277108159,3.3722651,167.52,167.45,9.92892559]
[1641277109461,3.3722651,167.52,167.47,3.0]
[1641277109660,3.3722651,167.52,167.45,9.92892559]
[1641277110061,3.3722651,167.54,167.45,9.92892559]
[1641277111163,3.3722651,167.54,167.47,27.66479]
[1641277112164,3.3722651,167.54,167.48,9.92892559]
[1641277112866,10.80483942,167.54,167.47,27.66479]
[1641277113365,7.43257432,167.54,167.47,27.66479]
[1641277113766,3.37192666,167.53,167.47,27.66479]
[1641277114168,7.43257432,167.54,167.47,27.66479]
[1641277115068,3.37190907,167.53,167.47,27.66479]
[1641277115467,7.43257432,167.54,167.47,27.66479]
[1641277116670,7.43257432,167.54,167.47,33.66479]
[1641277116869,3.37194058,167.53,167.47,33.66479]
[1641277118271,8.54894058,167.53,167.47,33.66479]
[1641277118873,3.37194058,167.52,167.47,33.66479]
[1641277120273,5.177,167.53,167.47,33.66479]
[1641277120476,12.60957432,167.53,167.48,4.21481589]
[1641277120674,7.43257432,167.53,167.48,4.21481589]
[1641277120874,7.43257432,167.53,167.48,7.21481589]
[1641277121074,7.43257432,167.53,167.48,4.21481589]
[1641277121876,7.43257432,167.53,167.49,4.21481589]
[1641277122274,7.43257432,167.53,167.49,7.21481589]
[1641277122475,7.43257432,167.56,167.5,4.21481589]
[1641277122775,3.37162767,167.55,167.5,4.21481589]
[1641277123176,3.37162767,167.55,167.5,7.21481589]
[1641277123374,3.37162767,167.55,167.53,27.66479]
[1641277123774,1.7282627,167.56,167.53,27.66479]
[1641277124875,1.7282627,167.57,167.53,27.66479]
[1641277127778,1.7282627,167.58,167.53,27.66479]
[1641277128378,3.37113524,167.57,167.53,27.66479]
[1641277128581,9.02513524,167.57,167.53,27.66479]
[1641277129178,5.654,167.57,167.53,27.66479]
[1641277129381,5.654,167.57,167.51,4.21481589]
[1641277129582,1.7282627,167.56,167.53,27.66479]
[1641277129781,5.09954523,167.56,167.53,27.66479]
[1641277129981,3.37128253,167.56,167.53,27.66479]
[1641277130182,18.26135928,167.57,167.53,27.66479]
[1641277130782,5.09903879,167.56,167.53,27.66479]
[1641277131087,1.72773575,167.56,167.53,27.66479]
[1641277131284,1.72773575,167.55,167.53,27.66479]
[1641277132384,1.72774133,167.56,167.53,27.66479]
[1641277132786,12.60735928,167.55,167.53,27.66479]
[1641277133588,1.72774133,167.56,167.53,27.66479]
[1641277134389,1.72774133,167.56,167.53,30.66479]
[1641277134588,12.64195797,167.55,167.53,30.66479]
[1641277135289,18.92715242,167.6,167.54,6.69640868]
[1641277135290,12.64030002,167.58,167.54,6.69640868]
[1641277137092,12.64030002,167.58,167.54,9.69640868]
[1641277137695,14.30803055,167.63,167.57,30.66479]
[1641277137895,14.30803055,167.63,167.57,36.28779]
[1641277138293,3.37043991,167.62,167.57,36.28779]
[1641277138893,3.37043991,167.62,167.57,33.28779]
[1641277139094,3.37043991,167.62,167.58,3.0]
[1641277139295,3.37043991,167.62,167.57,33.28779]
[1641277139296,1.72774133,167.61,167.57,36.28779]
[1641277139896,1.72774133,167.61,167.57,27.66479]
[1641277141195,1.72774133,167.62,167.57,27.66479]
[1641277141697,3.37049122,167.61,167.57,27.66479]
[1641277142900,3.37049122,167.61,167.53,31.87960589]
[1641277143101,1.72774133,167.6,167.52,4.21481589]
[1641277143602,64.80744133,167.6,167.52,4.21481589]
[1641277143801,3.37049122,167.59,167.53,27.66479]
[1641277144003,9.73249122,167.59,167.53,27.66479]
[1641277144503,3.37049122,167.58,167.53,27.66479]
[1641277146206,1.72774133,167.57,167.53,27.66479]
[1641277146903,1.72774133,167.57,167.53,33.66479]
[1641277147103,3.37136658,167.56,167.53,33.66479]
[1641277148407,6.641,167.58,167.53,33.66479]
[1641277148904,5.09570114,167.57,167.53,33.66479]
[1641277149304,1.72440195,167.57,167.53,33.66479]
[1641277149607,1.72440195,167.56,167.53,33.66479]
[1641277149805,5.09571395,167.56,167.53,33.66479]
[1641277150207,1.72440195,167.55,167.53,33.66479]
[1641277151006,1.72669868,167.56,167.53,33.66479]
[1641277152107,3.37157283,167.55,167.53,33.66479]
[1641277152607,3.37157283,167.55,167.53,6.0]
[1641277153206,1.72669868,167.54,167.53,6.0]
[1641277153608,5.09827151,167.54,167.53,6.0]
[1641277154010,1.72669868,167.54,167.53,6.0]
[1641277154815,14.3069879,167.56,167.53,6.0]
[1641277155217,3.37168049,167.55,167.53,6.0]
[1641277156014,1.72669868,167.54,167.53,6.0]
[1641277156916,12.58028922,167.56,167.53,6.0]
[1641277157318,3.37174388,167.55,167.53,6.0]
[1641277157517,15.9520331,167.55,167.53,6.0]
[1641277158418,3.37174388,167.55,167.53,6.0]
[1641277158719,12.58028922,167.56,167.53,6.0]
[1641277159220,3.37174102,167.55,167.53,6.0]
[1641277161323,15.95203024,167.55,167.53,6.0]
[1641277161922,3.37174102,167.54,167.53,6.0]
[1641277163523,12.58028922,167.55,167.53,6.0]
[1641277164225,21.58028922,167.57,167.53,6.0]
[1641277164823,3.37158099,167.56,167.53,6.0]
[1641277165226,15.95187021,167.56,167.53,6.0]
[1641277165626,3.37158099,167.55,167.53,6.0]
[1641277166428,12.58028922,167.56,167.53,6.0]
[1641277168129,12.58028922,167.56,167.53,33.66479]
[1641277169831,12.58028922,167.56,167.53,36.66479]
[1641277170234,7.41356386,167.59,167.53,36.66479]
[1641277170730,12.6362647,167.57,167.53,36.66479]
[1641277172134,12.6362647,167.57,167.53,33.66479]
[1641277174339,12.6362647,167.57,167.53,36.66479]
[1641277175239,12.6362647,167.59,167.55,4.21481589]
[1641277176041,12.6362647,167.59,167.56,27.66479]
[1641277180142,12.6362647,167.59,167.56,31.87960589]
[1641277180544,12.6362647,167.59,167.57,3.0]
[1641277180742,12.63882415,167.6,167.57,3.0]
[1641277180943,12.63882415,167.6,167.58,3.0]
[1641277181144,12.63882415,167.6,167.58,7.508]
[1641277181851,12.63882415,167.6,167.58,4.508]
[1641277182045,12.63882415,167.6,167.59,27.66479]
[1641277182643,1.73151358,167.62,167.59,27.66479]
[1641277182844,14.36886477,167.62,167.59,27.66479]
[1641277183646,12.63735119,167.62,167.59,27.66479]
[1641277186647,1.73151358,167.63,167.59,27.66479]
[1641277186848,1.73151358,167.63,167.59,31.87960589]
[1641277187548,14.3682942,167.63,167.59,31.87960589]
[1641277187948,12.63678062,167.63,167.59,31.87960589]
[1641277188150,9.02,167.64,167.59,27.66479]
[1641277188551,3.37002402,167.63,167.59,27.66479]
[1641277191153,1.7208557,167.62,167.59,27.66479]
[1641277191753,3.37002402,167.61,167.59,27.66479]
[1641277192752,3.37002402,167.63,167.59,27.66479]
[1641277194255,1.72098213,167.62,167.59,27.66479]
[1641277194453,1.72098213,167.62,167.56,27.66479]
[1641277194654,8.72098213,167.62,167.53,6.0]
[1641277194857,65.65992402,167.61,167.53,6.0]
[1641277195257,3.37002402,167.6,167.53,6.0]
[1641277195455,17.72778677,167.6,167.53,6.0]
[1641277196056,3.37002402,167.59,167.53,6.0]
[1641277196256,17.72778677,167.59,167.53,6.0]
[1641277196857,3.37002402,167.58,167.53,6.0]
[1641277197060,5.09100615,167.58,167.53,6.0]
[1641277197858,3.37002402,167.57,167.53,6.0]
[1641277198258,3.37002402,167.59,167.53,6.0]
[1641277198861,3.37002402,167.6,167.53,6.0]
[1641277199459,12.63678062,167.56,167.53,10.21481589]
[1641277200359,1.73458401,167.59,167.53,10.21481589]
[1641277200559,12.64202506,167.55,167.53,6.0]
[1641277201162,3.37149778,167.58,167.53,6.0]
[1641277201361,33.6894788,167.59,167.53,6.0]
[1641277201665,3.37146992,167.58,167.53,6.0]
[1641277201865,12.64222399,167.55,167.53,6.0]
[1641277202366,12.64190282,167.56,167.53,6.0]
[1641277202966,12.64190282,167.55,167.53,6.0]
[1641277203167,17.17990282,167.55,167.53,6.0]
[1641277203566,1.73458401,167.54,167.53,6.0]
[1641277204671,4.538,167.55,167.53,6.0]
[1641277205667,3.37173931,167.54,167.48,27.66479]
[1641277207774,4.461,167.54,167.48,27.66479]
[1641277208273,3.37173931,167.53,167.48,27.66479]
[1641277215281,12.29173931,167.54,167.48,27.66479]
[1641277215483,3.37173931,167.54,167.48,27.66479]
[1641277215683,1.7229295,167.53,167.48,27.66479]
[1641277215883,5.09466881,167.53,167.48,27.66479]
[1641277216289,3.37173931,167.52,167.48,27.66479]
[1641277217089,3.37173931,167.54,167.48,27.66479]
[1641277217591,1.72294024,167.53,167.48,27.66479]
[1641277217891,3.37173931,167.52,167.48,27.66479]
[1641277218594,12.54422399,167.5,167.48,27.66479]
[1641277219093,1.72294024,167.51,167.48,27.66479]
[1641277219693,42.85304611,167.54,167.47,4.21481589]
[1641277219898,12.64579949,167.51,167.47,4.21481589]
[1641277220399,12.64579949,167.51,167.47,6.69374719]
[1641277220898,14.36873973,167.51,167.47,6.69374719]
[1641277224406,14.36873973,167.51,167.47,4.21481589]
[1641277224607,1.72294024,167.51,167.46,3.0]
[1641277227412,1.72294024,167.51,167.47,3.0]
[1641277228309,1.72294024,167.51,167.5,27.66479]
[1641277228510,1.72294024,167.51,167.5,30.66479]
[1641277228809,1.72294024,167.51,167.5,27.66479]
[1641277229011,1.72294024,167.54,167.5,27.66479]
[1641277229714,1.72294024,167.57,167.5,30.66479]
[1641277230315,3.37141579,167.56,167.5,30.66479]
[1641277231113,3.37141579,167.57,167.5,30.66479]
[1641277232415,1.72615795,167.56,167.5,30.66479]
[1641277232616,1.72615795,167.56,167.51,3.0]
[1641277233216,1.72615795,167.56,167.52,3.0]
[1641277233515,1.72615795,167.56,167.55,3.0]
[1641277233915,5.795e-05,167.56,167.55,3.0]
[1641277234315,12.64579949,167.59,167.55,30.66479]
[1641277234516,12.64579949,167.61,167.55,30.66479]
[1641277235215,12.64579949,167.6,167.57,4.21481589]
[1641277236216,12.63841551,167.61,167.57,4.21481589]
[1641277236418,12.63841551,167.61,167.58,27.66479]
[1641277238020,12.63841551,167.62,167.58,31.87960589]
[1641277238220,12.63841551,167.62,167.58,4.21481589]
[1641277238419,3.37098184,167.61,167.58,4.21481589]
[1641277238621,7.61198184,167.61,167.58,4.21481589]
[1641277238919,41.30146064,167.61,167.55,6.0]
[1641277239320,3.37098184,167.6,167.55,6.0]
[1641277239522,12.64019908,167.58,167.55,6.0]
[1641277240322,7.38984721,167.6,167.55,6.0]
[1641277240921,12.64025589,167.58,167.55,6.0]
[1641277241521,7.38984721,167.6,167.55,6.0]
[1641277242124,12.64026515,167.58,167.55,6.0]
[1641277242727,7.38984721,167.6,167.55,6.0]
[1641277243025,3.37099638,167.59,167.55,6.0]
[1641277243323,12.64027451,167.58,167.55,6.0]
[1641277244024,7.38984721,167.6,167.55,6.0]
[1641277244624,6.37153861,167.59,167.55,6.0]
[1641277244824,12.6410491,167.57,167.55,6.0]
[1641277245024,12.6410491,167.57,167.53,4.21481589]
[1641277245426,12.64315738,167.54,167.51,4.21481589]
[1641277246227,7.38984721,167.56,167.5,4.21481589]
[1641277246827,3.37178804,167.55,167.5,4.21481589]
[1641277247026,12.64338114,167.54,167.5,4.21481589]
[1641277247830,12.64338114,167.56,167.49,27.66479]
[1641277248429,3.37185984,167.55,167.49,27.66479]
[1641277248830,3.37185984,167.55,167.5,3.0]
[1641277249030,3.37185984,167.55,167.51,3.0]
[1641277249330,12.64338114,167.56,167.5,4.437]
[1641277249730,21.74338114,167.6,167.51,4.21481589]
[1641277250029,6.37143094,167.59,167.51,4.21481589]
[1641277250529,3.0,167.57,167.51,4.21481589]
[1641277250931,6.37143094,167.56,167.51,4.21481589]
[1641277251130,6.37143094,167.56,167.49,4.21481589]
[1641277251330,3.37143094,167.55,167.49,4.21481589]
[1641277251729,12.64338114,167.56,167.48,8.0]
[1641277252129,76.89048114,167.56,167.48,8.0]
[1641277252331,3.37143094,167.55,167.48,8.0]
[1641277253134,3.37143094,167.55,167.48,12.21481589]
[1641277253534,3.37143094,167.55,167.48,8.0]
[1641277254235,3.37143094,167.55,167.48,12.21481589]
[1641277254835,12.64338114,167.54,167.5,4.21481589]
[1641277255245,3.37143094,167.53,167.5,4.21481589]
[1641277255835,16.01481208,167.53,167.49,4.21481589]
[1641277256037,12.64338114,167.53,167.49,4.21481589]
[1641277256436,7.39613808,167.55,167.49,4.21481589]
[1641277256836,12.64468738,167.52,167.49,4.21481589]
[1641277257638,12.64449945,167.53,167.49,4.21481589]
[1641277260941,12.64449945,167.54,167.5,4.21481589]
[1641277264045,12.64216469,167.56,167.52,31.87960589]
[1641277264245,12.64216469,167.56,167.53,4.21481589]
[1641277265043,7.39366373,167.57,167.53,4.21481589]
[1641277265245,7.39366373,167.57,167.53,10.21481589]
[1641277265844,12.64145794,167.57,167.53,10.21481589]
[1641277266447,3.37144355,167.56,167.53,10.21481589]
[1641277266648,3.37144355,167.56,167.53,6.0]
[1641277266649,16.01290149,167.56,167.53,6.0]
[1641277267147,12.64145794,167.56,167.53,6.0]
[1641277267449,12.64145794,167.57,167.53,10.21481589]
[1641277267650,12.64145794,167.57,167.53,15.76981589]
[1641277271656,60.099,167.58,167.54,4.21481589]
[1641277272152,12.64098419,167.57,167.54,4.21481589]
[1641277273352,33.6894788,167.61,167.54,4.21481589]
[1641277273555,12.6402151,167.58,167.55,4.21481589]
[1641277274356,12.6402151,167.58,167.55,7.21481589]
[1641277274556,1.51e-05,167.58,167.55,7.21481589]
[1641277274756,33.6894788,167.62,167.55,7.21481589]
[1641277274757,33.6894788,167.62,167.57,27.66479]
[1641277275154,14.35639539,167.61,167.57,31.87960589]
[1641277276255,14.35639539,167.61,167.57,34.87960589]
[1641277276454,1.7178984,167.61,167.58,3.0]
[1641277276655,8.80238817,167.65,167.6,4.21481589]
[1641277277456,1.7178984,167.64,167.6,4.21481589]
[1641277278458,8.801318,167.65,167.6,6.70974982]
[1641277278658,8.801318,167.65,167.6,9.70974982]
[1641277279260,8.801318,167.65,167.61,4.21481589]
[1641277279458,8.801318,167.65,167.61,6.70974982]
[1641277279961,1.71682823,167.65,167.61,4.21481589]
[1641277281460,1.71682823,167.65,167.62,4.21481589]
[1641277282062,3.36913194,167.64,167.62,4.21481589]
[1641277282264,9.77513194,167.64,167.62,4.21481589]
[1641277282662,9.77513194,167.64,167.61,4.21481589]
[1641277282861,6.406,167.64,167.61,4.21481589]
[1641277283264,1.60258946,167.63,167.61,4.21481589]
[1641277283464,4.97206639,167.63,167.61,4.21481589]
[1641277283862,1.60258946,167.63,167.61,4.21481589]
[1641277284662,6.406,167.64,167.61,4.21481589]
[1641277285268,1.60239715,167.63,167.62,4.21481589]
[1641277285965,4.97175992,167.63,167.62,4.21481589]
[1641277286165,3.36936277,167.63,167.62,4.21481589]
[1641277287368,4.97195224,167.63,167.62,4.21481589]
[1641277287966,3.36936277,167.63,167.62,4.21481589]
[1641277288467,3.36936277,167.65,167.62,4.21481589]
[1641277289269,1.6025837,167.63,167.62,4.21481589]
[1641277289770,1.60248192,167.64,167.62,4.21481589]
[1641277290271,1.60248573,167.65,167.62,4.21481589]
[1641277290670,3.36929357,167.64,167.62,4.21481589]
[1641277291271,1.6024195,167.63,167.62,4.21481589]
[1641277291673,3.36929357,167.64,167.59,2.49493393]
[1641277291874,27.66479,167.66,167.59,10.78893393]
[1641277292073,27.66479,167.66,167.6,3.0]
[1641277292677,20.92736067,167.66,167.6,3.0]
[1641277292977,1.60185867,167.65,167.64,4.21084]
[1641277293179,1.60185867,167.65,167.64,9.87184]
[1641277294878,1.60185867,167.65,167.64,12.36677393]
[1641277296783,1.60185867,167.65,167.64,18.36677393]
[1641277299486,4.97080753,167.65,167.64,18.36677393]
[1641277299889,1.60185867,167.65,167.64,18.36677393]
[1641277302591,4.97077612,167.65,167.64,18.36677393]
[1641277302891,1.60185867,167.65,167.64,18.36677393]
[1641277303090,1.60185867,167.65,167.64,11.661]
[1641277303790,4.9707716,167.65,167.64,11.661]
[1641277305492,1.60185867,167.65,167.64,11.661]
[1641277305896,1.60185867,167.65,167.64,18.42027583]
[1641277308098,1.60185867,167.65,167.64,15.87184]
[1641277308296,1.60185867,167.65,167.64,11.661]
[1641277316812,7.76785867,167.65,167.64,6.0]
[1641277325721,20.40055133,167.65,167.64,6.0]
[1641277325922,23.76953373,167.65,167.64,6.0]
[1641277326320,20.40055133,167.65,167.64,6.0]
[1641277327120,7.76785867,167.65,167.64,6.0]
[1641277333623,11.13683419,167.65,167.64,6.0]
[1641277333824,23.76952685,167.65,167.64,6.0]
[1641277335128,11.13683419,167.65,167.64,6.0]
[1641277336328,23.76910043,167.65,167.64,6.0]
[1641277336527,20.40012491,167.65,167.64,6.0]
[1641277337628,7.76785867,167.65,167.64,6.0]
[1641277337929,1.60185867,167.65,167.64,6.0]
[1641277338227,1.60185867,167.66,167.64,6.0]
[1641277340529,14.23412491,167.66,167.64,6.0]
[1641277347136,1.60185867,167.66,167.64,6.0]
[1641277348437,14.23412491,167.66,167.64,6.0]
[1641277350441,3.36873168,167.65,167.64,6.0]
[1641277350841,14.23412491,167.66,167.64,6.0]
[1641277351041,1.60185867,167.65,167.64,6.0]
[1641277351740,4.97060607,167.65,167.64,6.0]
[1641277351940,3.3687474,167.65,167.64,6.0]
[1641277352140,14.23412491,167.66,167.64,6.0]
[1641277354943,27.66479,167.67,167.64,6.0]
[1641277355343,3.36866153,167.66,167.64,6.0]
[1641277355946,5.03073734,167.66,167.64,6.0]
[1641277356145,17.66235843,167.66,167.64,6.0]
[1641277356445,1.66193574,167.65,167.64,6.0]
[1641277357446,1.66419725,167.66,167.64,6.0]
[1641277357646,14.29540918,167.66,167.64,6.0]
[1641277358048,40.29592349,167.67,167.64,6.0]
[1641277358450,14.29536993,167.66,167.64,6.0]
[1641277359249,40.29596414,167.67,167.64,6.0]
[1641277360148,1.6618139,167.66,167.64,6.0]
[1641277360749,40.29596414,167.67,167.64,6.0]
[1641277361349,5.03042303,167.66,167.64,6.0]
[1641277361849,1.66189317,167.66,167.64,6.0]
[1641277362350,1.66190727,167.65,167.64,6.0]
[1641277362950,12.63117414,167.66,167.64,6.0]
[1641277364152,1.66192375,167.66,167.64,6.0]
[1641277364750,12.63126172,167.66,167.64,6.0]
[1641277365551,1.66421716,167.66,167.64,6.0]
[1641277366154,40.2959288,167.67,167.64,6.0]
[1641277366354,12.6311388,167.67,167.64,6.0]
[1641277366555,1.66416743,167.66,167.64,6.0]
[1641277367455,40.2959288,167.67,167.64,6.0]
[1641277368258,1.6641704,167.66,167.64,6.0]
[1641277369158,40.2959288,167.67,167.64,6.0]
[1641277369558,1.662088,167.66,167.64,6.0]
[1641277370163,27.66479,167.67,167.64,6.0]
[1641277370960,1.66203292,167.66,167.64,6.0]
[1641277371668,27.66479,167.67,167.64,6.0]
[1641277372067,1.66203187,167.66,167.64,6.0]
[1641277372968,1.66203187,167.66,167.64,9.0]
[1641277373169,27.66479,167.67,167.64,6.0]
[1641277373370,27.66479,167.67,167.64,11.527]
[1641277374070,1.66197505,167.66,167.64,11.527]
[1641277374473,27.66479,167.67,167.64,11.527]
[1641277374672,27.66479,167.67,167.64,15.73784]
[1641277375474,1.6618814,167.66,167.64,15.73784]
[1641277375974,27.66479,167.67,167.64,15.73784]
[1641277376774,1.66367642,167.66,167.64,15.73784]
[1641277377175,12.62990656,167.68,167.64,15.73784]
[1641277377375,12.62990656,167.68,167.64,18.73784]
[1641277377674,62.7872,167.7,167.64,18.73784]
[1641277377877,27.66479,167.67,167.64,18.73784]
[1641277378276,12.2749714,167.69,167.64,18.73784]
[1641277378476,1.66367025,167.66,167.64,18.73784]
[1641277379277,8.90685191,167.69,167.64,18.73784]